[Event "Late-Titled-Tuesday-Blitz-June-04-2024"]
[Site "Chess.com"]
[Date "2024.06.04"]
[Round "1"]
[White "Caracal3000"]
[Black "AsaHoffmann"]
[Result "1-0"]
[WhiteElo "2586"]
[BlackElo "2268"]
[TimeControl "180+1"]
[EndTime "14:08:34 PDT"]
[Termination "Caracal3000 won by resignation"]

1. e4 {[%clk 0:03:00.9]} 1... d6 {[%clk 0:02:53.4]} 2. d4 {[%clk 0:03:00.9]}
2... Nf6 {[%clk 0:02:48.9]} 3. Nc3 {[%clk 0:03:00.8]} 3... c6 {[%clk 0:02:44.1]}
4. Nf3 {[%clk 0:02:56.3]} 4... Bg4 {[%clk 0:02:42.8]} 5. Be2 {[%clk 0:02:55.8]}
5... e6 {[%clk 0:02:41.6]} 6. h3 {[%clk 0:02:52.2]} 6... Bh5 {[%clk 0:02:41.3]}
7. O-O {[%clk 0:02:47.2]} 7... d5 {[%clk 0:02:41.2]} 8. exd5 {[%clk 0:02:37.8]}
8... c5 {[%clk 0:02:40.7]} 9. dxe6 {[%clk 0:02:27.1]} 9... fxe6 {[%clk
0:02:39.4]} 10. Re1 {[%clk 0:02:04.6]} 10... Nc6 {[%clk 0:02:34.4]} 11. d5
{[%clk 0:01:55]} 11... exd5 {[%clk 0:02:26.7]} 12. Ba6+ {[%clk 0:01:43.3]} 12...
Be7 {[%clk 0:02:25.9]} 13. Bxb7 {[%clk 0:01:43.1]} 13... Nd4 {[%clk 0:02:19.5]}
14. Bxa8 {[%clk 0:01:36.3]} 14... Nxf3+ {[%clk 0:02:18.9]} 15. gxf3 {[%clk
0:01:35.4]} 15... Qxa8 {[%clk 0:02:18.5]} 16. Qe2 {[%clk 0:01:31.3]} 16... O-O
{[%clk 0:01:57.9]} 17. Bg5 {[%clk 0:01:01.7]} 17... d4 {[%clk 0:01:53.4]} 18.
Qe6+ {[%clk 0:00:51.8]} 18... Bf7 {[%clk 0:01:50.4]} 19. Qxe7 {[%clk 0:00:51.9]}
19... dxc3 {[%clk 0:01:45.9]} 20. Bxf6 {[%clk 0:00:33.8]} 20... Qxf3 {[%clk
0:01:37.8]} 21. Bxc3 {[%clk 0:00:19.8]} 21... Qxh3 {[%clk 0:01:28.8]} 22. Qg5
{[%clk 0:00:20]} 22... Bg6 {[%clk 0:01:25.3]} 23. Qg3 {[%clk 0:00:17.6]} 23...
Qf5 {[%clk 0:01:18.3]} 24. Re3 {[%clk 0:00:16.7]} 24... h5 {[%clk 0:01:14.5]}
25. Rae1 {[%clk 0:00:16.3]} 25... h4 {[%clk 0:01:13.9]} 26. Qxh4 {[%clk
0:00:15.9]} 26... Bh5 {[%clk 0:00:58.8]} 27. Qg3 {[%clk 0:00:15.7]} 27... Rf7
{[%clk 0:00:52.9]} 28. Re8+ {[%clk 0:00:15.5]} 28... Kh7 {[%clk 0:00:52.9]} 29.
R8e5 {[%clk 0:00:15.7]} 29... Qg4 {[%clk 0:00:49.3]} 30. Qxg4 {[%clk 0:00:15.6]}
30... Bxg4 {[%clk 0:00:49]} 31. Rxc5 {[%clk 0:00:15.8]} 31... Bf3 {[%clk
0:00:46.4]} 32. Rg5 {[%clk 0:00:15.7]} 32... g6 {[%clk 0:00:45.8]} 33. Rg3
{[%clk 0:00:15.4]} 33... Rf4 {[%clk 0:00:42.8]} 34. Rh3+ {[%clk 0:00:15]} 34...
Kg8 {[%clk 0:00:42.5]} 35. Re7 {[%clk 0:00:13.5]} 35... Bh5 {[%clk 0:00:39.6]}
36. Rg7+ {[%clk 0:00:09.7]} 36... Kf8 {[%clk 0:00:39.4]} 37. Rd3 {[%clk
0:00:08.8]} 37... Ke8 {[%clk 0:00:37.8]} 38. Re3+ {[%clk 0:00:08.2]} 38... Kf8
{[%clk 0:00:37.5]} 39. Rxa7 {[%clk 0:00:08]} 39... Rg4+ {[%clk 0:00:35.2]} 40.
Kf1 {[%clk 0:00:08]} 40... Rf4 {[%clk 0:00:34.1]} 41. Rh3 {[%clk 0:00:07.8]}
41... Rf5 {[%clk 0:00:32.9]} 42. Rxh5 {[%clk 0:00:08]} 42... gxh5 {[%clk
0:00:32.2]} 43. Ra4 {[%clk 0:00:08.4]} 43... Kf7 {[%clk 0:00:31.3]} 44. Bd2
{[%clk 0:00:08.9]} 44... Kg6 {[%clk 0:00:31.1]} 45. Rf4 {[%clk 0:00:08.9]} 45...
Rd5 {[%clk 0:00:30.6]} 46. Be3 {[%clk 0:00:09.2]} 46... Rb5 {[%clk 0:00:29.7]}
47. b3 {[%clk 0:00:09.4]} 47... Rd5 {[%clk 0:00:29]} 48. a4 {[%clk 0:00:09.4]}
48... Rd1+ {[%clk 0:00:28.1]} 49. Ke2 {[%clk 0:00:09.9]} 49... Ra1 {[%clk
0:00:27.1]} 50. Rc4 {[%clk 0:00:10]} 50... Ra2 {[%clk 0:00:25]} 51. Rc5 {[%clk
0:00:09.3]} 51... h4 {[%clk 0:00:24.4]} 52. Kf3 {[%clk 0:00:09.9]} 52... h3
{[%clk 0:00:24.3]} 53. Kg3 {[%clk 0:00:10.3]} 53... Kf6 {[%clk 0:00:21.1]} 54.
Kxh3 {[%clk 0:00:10.8]} 54... Ke6 {[%clk 0:00:20.8]} 55. Kg3 {[%clk 0:00:11.4]}
55... Kd6 {[%clk 0:00:20.7]} 56. Rc4 {[%clk 0:00:12.3]} 56... Kd5 {[%clk
0:00:20.6]} 57. Kf3 {[%clk 0:00:12]} 57... Rb2 {[%clk 0:00:19.9]} 58. Ke2 {[%clk
0:00:12.4]} 58... Ra2 {[%clk 0:00:19.4]} 59. Kd2 {[%clk 0:00:11.9]} 59... Ra1
{[%clk 0:00:18.8]} 60. Rd4+ {[%clk 0:00:11.7]} 60... Ke5 {[%clk 0:00:18.8]} 61.
Rd3 {[%clk 0:00:11.8]} 61... Ra2 {[%clk 0:00:18.3]} 62. Kc3 {[%clk 0:00:12.3]}
62... Ke4 {[%clk 0:00:17.8]} 63. Rd1 {[%clk 0:00:12.3]} 63... Kf3 {[%clk
0:00:16.4]} 64. Rb1 {[%clk 0:00:12]} 64... Ke2 {[%clk 0:00:15.7]} 65. Bc1 {[%clk
0:00:12.3]} 65... Kd1 {[%clk 0:00:14.2]} 66. Bb2+ {[%clk 0:00:12.1]} 66... Ke2
{[%clk 0:00:11.8]} 67. f4 {[%clk 0:00:12.7]} 67... Ke3 {[%clk 0:00:09.7]} 68. f5
{[%clk 0:00:13.2]} 68... Ke4 {[%clk 0:00:09.7]} 69. f6 {[%clk 0:00:13.8]} 69...
Kd5 {[%clk 0:00:09.3]} 70. f7 {[%clk 0:00:14.4]} 1-0

[Event "Late-Titled-Tuesday-Blitz-June-04-2024"]
[Site "Chess.com"]
[Date "2024.06.04"]
[Round "1"]
[White "Agustin_Meza"]
[Black "ImportedItalianMaple"]
[Result "0-1"]
[WhiteElo "2175"]
[BlackElo "2551"]
[TimeControl "180+1"]
[EndTime "14:08:38 PDT"]
[Termination "ImportedItalianMaple won by resignation"]

1. e4 {[%clk 0:03:00.7]} 1... g6 {[%clk 0:03:00.1]} 2. d4 {[%clk 0:03:00.6]}
2... Bg7 {[%clk 0:03:00.7]} 3. Nf3 {[%clk 0:02:59]} 3... d6 {[%clk 0:03:00.6]}
4. Bg5 {[%clk 0:02:55.1]} 4... h6 {[%clk 0:02:58.3]} 5. Bh4 {[%clk 0:02:53.7]}
5... g5 {[%clk 0:02:50.9]} 6. Bg3 {[%clk 0:02:53.4]} 6... b6 {[%clk 0:02:51.3]}
7. c3 {[%clk 0:02:51.8]} 7... Bb7 {[%clk 0:02:51.6]} 8. Bd3 {[%clk 0:02:51.5]}
8... Nd7 {[%clk 0:02:51.8]} 9. Nbd2 {[%clk 0:02:48.5]} 9... e6 {[%clk
0:02:49.2]} 10. Qe2 {[%clk 0:02:43.1]} 10... Ne7 {[%clk 0:02:48.9]} 11. h3
{[%clk 0:02:35.8]} 11... a6 {[%clk 0:02:47.5]} 12. e5 {[%clk 0:02:32.8]} 12...
dxe5 {[%clk 0:02:32.2]} 13. Nxe5 {[%clk 0:02:31.1]} 13... Nf6 {[%clk 0:02:29.9]}
14. Ne4 {[%clk 0:02:21.9]} 14... Nf5 {[%clk 0:02:24.7]} 15. Nxf6+ {[%clk
0:02:17.1]} 15... Qxf6 {[%clk 0:02:25.6]} 16. Be4 {[%clk 0:02:06.6]} 16... O-O-O
{[%clk 0:01:52]} 17. Bxb7+ {[%clk 0:01:55.6]} 17... Kxb7 {[%clk 0:01:52.5]} 18.
Qe4+ {[%clk 0:01:55.6]} 18... Rd5 {[%clk 0:01:52.9]} 19. c4 {[%clk 0:01:42.7]}
19... Nd6 {[%clk 0:01:46.3]} 20. Qe3 {[%clk 0:01:23.2]} 20... Nf5 {[%clk
0:01:11.8]} 21. Qe4 {[%clk 0:01:10.5]} 21... Nd6 {[%clk 0:01:11.8]} 22. Qe3
{[%clk 0:01:07.2]} 22... Nf5 {[%clk 0:00:46.5]} 23. cxd5 {[%clk 0:00:41.1]}
23... Nxe3 {[%clk 0:00:44.2]} 24. fxe3 {[%clk 0:00:42]} 24... exd5 {[%clk
0:00:34.9]} 25. Rf1 {[%clk 0:00:40.7]} 25... Qd6 {[%clk 0:00:30]} 26. Kf2 {[%clk
0:00:19.6]} 26... Re8 {[%clk 0:00:24.5]} 27. Kg1 {[%clk 0:00:19.1]} 27... Bxe5
{[%clk 0:00:20]} 28. Bxe5 {[%clk 0:00:19]} 28... Rxe5 {[%clk 0:00:19.8]} 29.
dxe5 {[%clk 0:00:19.9]} 29... Qxe5 {[%clk 0:00:20.7]} 30. Rxf7 {[%clk
0:00:18.8]} 30... Qxe3+ {[%clk 0:00:21.1]} 31. Kh1 {[%clk 0:00:18.5]} 31... d4
{[%clk 0:00:20.7]} 32. Rd1 {[%clk 0:00:16]} 32... b5 {[%clk 0:00:18.9]} 33. Rd7
{[%clk 0:00:15.9]} 33... Qe2 {[%clk 0:00:15.5]} 34. R1xd4 {[%clk 0:00:12.1]}
34... Qxb2 {[%clk 0:00:16.1]} 35. Rd2 {[%clk 0:00:10.5]} 35... Qc1+ {[%clk
0:00:13.7]} 36. Rd1 {[%clk 0:00:08.6]} 36... Qc4 {[%clk 0:00:11.8]} 37. R1d2
{[%clk 0:00:07.9]} 37... a5 {[%clk 0:00:12.2]} 38. R7d4 {[%clk 0:00:07.5]} 38...
Qc6 {[%clk 0:00:10.7]} 39. Rd7 {[%clk 0:00:07]} 39... b4 {[%clk 0:00:10.3]} 40.
R7d3 {[%clk 0:00:04]} 40... Kb6 {[%clk 0:00:08]} 41. Kh2 {[%clk 0:00:04.5]}
41... Qc5 {[%clk 0:00:07.1]} 42. Rf3 {[%clk 0:00:04.5]} 42... Qe5+ {[%clk
0:00:06.8]} 43. g3 {[%clk 0:00:02.8]} 43... c6 {[%clk 0:00:07.1]} 44. Rdf2
{[%clk 0:00:03.7]} 44... a4 {[%clk 0:00:06.3]} 45. Rf6 {[%clk 0:00:04.6]} 45...
Qc5 {[%clk 0:00:06.3]} 46. R2f5 {[%clk 0:00:04.2]} 46... Qc2+ {[%clk 0:00:06]}
47. Rf2 {[%clk 0:00:05.1]} 47... Qc4 {[%clk 0:00:06.7]} 48. Rxh6 {[%clk
0:00:03.5]} 48... b3 {[%clk 0:00:07]} 49. axb3 {[%clk 0:00:03.7]} 49... axb3
{[%clk 0:00:07.9]} 50. Rhf6 {[%clk 0:00:03.1]} 50... Kb5 {[%clk 0:00:07.2]} 51.
R6f3 {[%clk 0:00:03.6]} 51... c5 {[%clk 0:00:07.3]} 52. Kg2 {[%clk 0:00:03.1]}
52... Kb4 {[%clk 0:00:07.8]} 53. h4 {[%clk 0:00:03.6]} 53... gxh4 {[%clk
0:00:05.3]} 54. gxh4 {[%clk 0:00:04.5]} 54... Qg4+ {[%clk 0:00:05]} 55. Rg3
{[%clk 0:00:03.8]} 55... Qxh4 {[%clk 0:00:05.6]} 56. Kf3 {[%clk 0:00:04.2]}
56... Qd4 {[%clk 0:00:05.8]} 57. Rg4 {[%clk 0:00:05.1]} 57... Qxg4+ {[%clk
0:00:05.9]} 58. Kxg4 {[%clk 0:00:06]} 58... c4 {[%clk 0:00:06.8]} 59. Kf3 {[%clk
0:00:06.9]} 59... c3 {[%clk 0:00:07.6]} 60. Ke3 {[%clk 0:00:07.8]} 60... b2
{[%clk 0:00:08.3]} 61. Rf8 {[%clk 0:00:02.2]} 61... c2 {[%clk 0:00:06.5]} 62.
Rb8+ {[%clk 0:00:02.6]} 62... Kc3 {[%clk 0:00:07.2]} 63. Rc8+ {[%clk 0:00:02.7]}
63... Kb3 {[%clk 0:00:07.9]} 64. Rb8+ {[%clk 0:00:03.6]} 64... Ka2 {[%clk
0:00:08.2]} 65. Rc8 {[%clk 0:00:04.5]} 65... c1=Q+ {[%clk 0:00:08.3]} 66. Rxc1
{[%clk 0:00:03.3]} 66... bxc1=Q+ {[%clk 0:00:09.2]} 0-1

[Event "Late-Titled-Tuesday-Blitz-June-04-2024"]
[Site "Chess.com"]
[Date "2024.06.04"]
[Round "1"]
[White "sari07"]
[Black "andrew-blr"]
[Result "1/2-1/2"]
[WhiteElo "2362"]
[BlackElo "2654"]
[TimeControl "180+1"]
[EndTime "14:08:39 PDT"]
[Termination "Game drawn by repetition"]

1. d4 {[%clk 0:03:00.2]} 1... d5 {[%clk 0:02:59.6]} 2. Nf3 {[%clk 0:02:58.6]}
2... Nf6 {[%clk 0:02:58.9]} 3. e3 {[%clk 0:02:57.9]} 3... c5 {[%clk 0:02:58.5]}
4. c3 {[%clk 0:02:57.7]} 4... e6 {[%clk 0:02:51.6]} 5. Bd3 {[%clk 0:02:56.9]}
5... Nc6 {[%clk 0:02:49.5]} 6. O-O {[%clk 0:02:56.2]} 6... Bd6 {[%clk
0:02:49.3]} 7. dxc5 {[%clk 0:02:47.1]} 7... Bxc5 {[%clk 0:02:49.1]} 8. Nbd2
{[%clk 0:02:47.7]} 8... O-O {[%clk 0:02:33]} 9. e4 {[%clk 0:02:47.5]} 9... h6
{[%clk 0:02:33.2]} 10. Qe2 {[%clk 0:02:40.7]} 10... Bb6 {[%clk 0:02:25.6]} 11.
c4 {[%clk 0:02:11]} 11... dxc4 {[%clk 0:01:48.9]} 12. Nxc4 {[%clk 0:02:07.8]}
12... e5 {[%clk 0:01:49]} 13. Nfxe5 {[%clk 0:01:36.1]} 13... Nxe5 {[%clk
0:01:48.4]} 14. Nxe5 {[%clk 0:01:37]} 14... Re8 {[%clk 0:01:48.9]} 15. Bf4
{[%clk 0:01:36.8]} 15... Bd4 {[%clk 0:01:47.6]} 16. Nf3 {[%clk 0:01:21.5]} 16...
Bf5 {[%clk 0:01:47.1]} 17. Nxd4 {[%clk 0:01:14.3]} 17... Qxd4 {[%clk 0:01:46.7]}
18. Be3 {[%clk 0:01:12.8]} 18... Qe5 {[%clk 0:01:26]} 19. exf5 {[%clk
0:01:12.7]} 19... Rad8 {[%clk 0:01:26.7]} 20. Rad1 {[%clk 0:01:08]} 20... h5
{[%clk 0:01:25.8]} 21. Bb5 {[%clk 0:01:00.2]} 21... Ng4 {[%clk 0:01:20.9]} 22.
g3 {[%clk 0:00:53.3]} 22... Rxd1 {[%clk 0:01:18]} 23. Rxd1 {[%clk 0:00:48.8]}
23... Rc8 {[%clk 0:01:15.4]} 24. Bf4 {[%clk 0:00:39.7]} 24... Qf6 {[%clk
0:01:05.9]} 25. h3 {[%clk 0:00:33.4]} 25... Nh6 {[%clk 0:01:02.1]} 26. Bxh6
{[%clk 0:00:32]} 26... Qxh6 {[%clk 0:01:02.1]} 27. Qe3 {[%clk 0:00:29]} 27...
Qf6 {[%clk 0:00:59.4]} 28. Qf3 {[%clk 0:00:17.4]} 28... Qxb2 {[%clk 0:00:55.7]}
29. Qxb7 {[%clk 0:00:15.9]} 29... Rf8 {[%clk 0:00:46.4]} 30. a4 {[%clk
0:00:13.3]} 30... a5 {[%clk 0:00:43.4]} 31. Bc6 {[%clk 0:00:12.9]} 31... Qc2
{[%clk 0:00:43.2]} 32. Rd5 {[%clk 0:00:10.5]} 32... h4 {[%clk 0:00:37.8]} 33.
Kg2 {[%clk 0:00:10.5]} 33... hxg3 {[%clk 0:00:37.7]} 34. Kxg3 {[%clk 0:00:11.4]}
34... Qc3+ {[%clk 0:00:32.8]} 35. Kg2 {[%clk 0:00:11.1]} 35... Qe1 {[%clk
0:00:30.7]} 36. Qd7 {[%clk 0:00:11]} 36... Qe4+ {[%clk 0:00:29.8]} 37. f3 {[%clk
0:00:11]} 37... Qe2+ {[%clk 0:00:29.4]} 38. Kg3 {[%clk 0:00:11.5]} 38... Qe1+
{[%clk 0:00:28.4]} 39. Kf4 {[%clk 0:00:11.7]} 39... Rb8 {[%clk 0:00:24.9]} 40.
Rd4 {[%clk 0:00:11.3]} 40... Qc1+ {[%clk 0:00:20.3]} 41. Kg4 {[%clk 0:00:11.7]}
41... Qg1+ {[%clk 0:00:20.1]} 42. Kf4 {[%clk 0:00:12.4]} 42... Qc1+ {[%clk
0:00:19.9]} 43. Kg3 {[%clk 0:00:12.8]} 43... Qg5+ {[%clk 0:00:19.3]} 44. Rg4
{[%clk 0:00:12.1]} 44... Qf6 {[%clk 0:00:18]} 45. Qd5 {[%clk 0:00:11.9]} 45...
Rb1 {[%clk 0:00:16.7]} 46. Qc5 {[%clk 0:00:08.6]} 46... Qd8 {[%clk 0:00:10.7]}
47. Be4 {[%clk 0:00:08.6]} 47... Rb4 {[%clk 0:00:08.8]} 48. f6 {[%clk
0:00:08.9]} 48... g6 {[%clk 0:00:08.8]} 49. Qg5 {[%clk 0:00:08.7]} 49... Qb8+
{[%clk 0:00:08.6]} 50. Kh4 {[%clk 0:00:08.3]} 50... Qh2 {[%clk 0:00:05.2]} 51.
Qh6 {[%clk 0:00:08]} 51... Qf2+ {[%clk 0:00:04.7]} 52. Rg3 {[%clk 0:00:08.4]}
52... Rxe4+ {[%clk 0:00:03.5]} 53. fxe4 {[%clk 0:00:08.8]} 53... Qxf6+ {[%clk
0:00:04.1]} 54. Qg5 {[%clk 0:00:08.8]} 54... Qh8+ {[%clk 0:00:03.9]} 55. Kg4
{[%clk 0:00:08.8]} 55... Qd4 {[%clk 0:00:03.5]} 56. Qf4 {[%clk 0:00:08.4]} 56...
Qd1+ {[%clk 0:00:02.3]} 57. Qf3 {[%clk 0:00:08]} 57... Qd7+ {[%clk 0:00:02.4]}
58. Kg5 {[%clk 0:00:07.6]} 58... Qe7+ {[%clk 0:00:02.4]} 59. Qf6 {[%clk
0:00:07]} 59... Qxe4 {[%clk 0:00:02.7]} 60. Qd8+ {[%clk 0:00:07.1]} 60... Kh7
{[%clk 0:00:02.6]} 61. Rg4 {[%clk 0:00:06.9]} 61... Qf5+ {[%clk 0:00:02.4]} 62.
Kh4 {[%clk 0:00:07.2]} 62... Qf2+ {[%clk 0:00:03]} 63. Rg3 {[%clk 0:00:06.9]}
63... Qf4+ {[%clk 0:00:03.6]} 64. Rg4 {[%clk 0:00:06.9]} 64... Qf2+ {[%clk
0:00:04.1]} 65. Rg3 {[%clk 0:00:06.8]} 65... Qf4+ {[%clk 0:00:04.7]} 66. Rg4
{[%clk 0:00:07.3]} 66... Qf2+ {[%clk 0:00:04.6]} 1/2-1/2

[Event "Late-Titled-Tuesday-Blitz-June-04-2024"]
[Site "Chess.com"]
[Date "2024.06.04"]
[Round "1"]
[White "djano"]
[Black "rikchessmx"]
[Result "1/2-1/2"]
[WhiteElo "2628"]
[BlackElo "2341"]
[TimeControl "180+1"]
[EndTime "14:08:53 PDT"]
[Termination "Game drawn by repetition"]

1. e4 {[%clk 0:03:00.9]} 1... e5 {[%clk 0:02:40.6]} 2. Nf3 {[%clk 0:02:59.6]}
2... Nc6 {[%clk 0:02:41.5]} 3. d4 {[%clk 0:02:59.6]} 3... exd4 {[%clk
0:02:40.9]} 4. Bc4 {[%clk 0:02:59.8]} 4... d6 {[%clk 0:02:40.4]} 5. Nxd4 {[%clk
0:02:58.3]} 5... Nf6 {[%clk 0:02:40]} 6. Nc3 {[%clk 0:02:58.7]} 6... Be7 {[%clk
0:02:40]} 7. h3 {[%clk 0:02:56.2]} 7... O-O {[%clk 0:02:40.3]} 8. Bf4 {[%clk
0:02:53.6]} 8... Ne5 {[%clk 0:02:39.5]} 9. Be2 {[%clk 0:02:51.7]} 9... Ng6
{[%clk 0:02:39.8]} 10. Be3 {[%clk 0:02:48.8]} 10... c6 {[%clk 0:02:38.2]} 11.
O-O {[%clk 0:02:43.5]} 11... Qc7 {[%clk 0:02:37.8]} 12. f4 {[%clk 0:02:41.6]}
12... Re8 {[%clk 0:02:38]} 13. a4 {[%clk 0:02:35.8]} 13... Bf8 {[%clk
0:02:37.5]} 14. Bf3 {[%clk 0:02:34.8]} 14... a5 {[%clk 0:02:21.7]} 15. Qe1
{[%clk 0:02:22.8]} 15... b6 {[%clk 0:02:15.2]} 16. Qf2 {[%clk 0:02:02.7]} 16...
Ba6 {[%clk 0:02:11.5]} 17. Rfe1 {[%clk 0:01:58]} 17... Rab8 {[%clk 0:02:10.6]}
18. e5 {[%clk 0:01:40.4]} 18... dxe5 {[%clk 0:02:09.7]} 19. Nxc6 {[%clk
0:01:40.9]} 19... exf4 {[%clk 0:02:06.2]} 20. Bd4 {[%clk 0:01:28.1]} 20... Rxe1+
{[%clk 0:02:03.9]} 21. Rxe1 {[%clk 0:01:25.7]} 21... Re8 {[%clk 0:01:57.5]} 22.
Rxe8 {[%clk 0:01:04.3]} 22... Nxe8 {[%clk 0:01:57]} 23. Bxb6 {[%clk 0:01:01]}
23... Qd7 {[%clk 0:01:49.5]} 24. Bxa5 {[%clk 0:00:54.7]} 24... Nd6 {[%clk
0:01:38.9]} 25. Nb8 {[%clk 0:00:47.4]} 25... Qc8 {[%clk 0:01:30.6]} 26. Nxa6
{[%clk 0:00:40.2]} 26... Qxa6 {[%clk 0:01:30]} 27. Qb6 {[%clk 0:00:38.3]} 27...
Qc8 {[%clk 0:01:19.8]} 28. Qc6 {[%clk 0:00:27.4]} 28... Qf5 {[%clk 0:01:16.8]}
29. Bb4 {[%clk 0:00:24.3]} 29... Qe5 {[%clk 0:00:56.4]} 30. Bxd6 {[%clk
0:00:16.6]} 30... Bxd6 {[%clk 0:00:54.1]} 31. Qa8+ {[%clk 0:00:13.8]} 31... Nf8
{[%clk 0:00:51.9]} 32. Qe4 {[%clk 0:00:14.7]} 32... Bc5+ {[%clk 0:00:46.7]} 33.
Kh2 {[%clk 0:00:15]} 33... Qd6 {[%clk 0:00:46.7]} 34. Qd5 {[%clk 0:00:14.4]}
34... Qb6 {[%clk 0:00:45.6]} 35. Ne2 {[%clk 0:00:10.5]} 35... Be3 {[%clk
0:00:43.3]} 36. Qb5 {[%clk 0:00:07.7]} 36... Qf6 {[%clk 0:00:42.3]} 37. a5
{[%clk 0:00:06.1]} 37... Bf2 {[%clk 0:00:30.9]} 38. Qc6 {[%clk 0:00:04.9]} 38...
Qe5 {[%clk 0:00:28.6]} 39. a6 {[%clk 0:00:04.5]} 39... Bg3+ {[%clk 0:00:28.7]}
40. Kh1 {[%clk 0:00:02.9]} 40... Qe3 {[%clk 0:00:28.3]} 41. Qd5 {[%clk
0:00:01.5]} 41... Qf2 {[%clk 0:00:26.9]} 42. Qd1 {[%clk 0:00:01.5]} 42... Qb6
{[%clk 0:00:24]} 43. Nxg3 {[%clk 0:00:02.1]} 43... fxg3 {[%clk 0:00:23.7]} 44.
Qa1 {[%clk 0:00:02.7]} 44... Qa7 {[%clk 0:00:23.2]} 45. b4 {[%clk 0:00:03.4]}
45... Ne6 {[%clk 0:00:23]} 46. b5 {[%clk 0:00:04.1]} 46... Nc7 {[%clk
0:00:21.4]} 47. b6 {[%clk 0:00:04.1]} 47... Qxb6 {[%clk 0:00:21.6]} 48. a7
{[%clk 0:00:04.3]} 48... g6 {[%clk 0:00:19.4]} 49. a8=Q+ {[%clk 0:00:04.2]}
49... Nxa8 {[%clk 0:00:17.8]} 50. Qxa8+ {[%clk 0:00:05.1]} 50... Kg7 {[%clk
0:00:18]} 51. Qa1+ {[%clk 0:00:05.8]} 51... Kh6 {[%clk 0:00:17.9]} 52. Qc1+
{[%clk 0:00:05.9]} 52... Kg7 {[%clk 0:00:17.3]} 53. Qd1 {[%clk 0:00:06.8]} 53...
Qf2 {[%clk 0:00:16.2]} 54. Qa1+ {[%clk 0:00:06.7]} 54... f6 {[%clk 0:00:15.9]}
55. c4 {[%clk 0:00:07.1]} 55... Qc5 {[%clk 0:00:15.1]} 56. Qc1 {[%clk
0:00:06.4]} 56... h5 {[%clk 0:00:13.7]} 57. Bd5 {[%clk 0:00:06.6]} 57... h4
{[%clk 0:00:13.2]} 58. Qb1 {[%clk 0:00:07.1]} 58... Qe3 {[%clk 0:00:10.9]} 59.
Qg1 {[%clk 0:00:07.2]} 59... Qc3 {[%clk 0:00:10]} 60. c5 {[%clk 0:00:07.1]}
60... g5 {[%clk 0:00:09.9]} 61. Bf3 {[%clk 0:00:07.4]} 61... f5 {[%clk
0:00:09.8]} 62. c6 {[%clk 0:00:07.3]} 62... Kg6 {[%clk 0:00:09.4]} 63. Qd1
{[%clk 0:00:06.7]} 63... Qc5 {[%clk 0:00:08.2]} 64. Qe1 {[%clk 0:00:04.4]} 64...
Kf6 {[%clk 0:00:07.6]} 65. Qa1+ {[%clk 0:00:04]} 65... Ke7 {[%clk 0:00:07.6]}
66. Qg7+ {[%clk 0:00:03.3]} 66... Kd6 {[%clk 0:00:07.5]} 67. Qd7+ {[%clk
0:00:03]} 67... Ke5 {[%clk 0:00:07.9]} 68. Qd5+ {[%clk 0:00:03.6]} 68... Qxd5
{[%clk 0:00:07.6]} 69. Bxd5 {[%clk 0:00:04.5]} 69... Kd6 {[%clk 0:00:07.6]} 70.
Kg1 {[%clk 0:00:04.7]} 70... g4 {[%clk 0:00:06.8]} 71. hxg4 {[%clk 0:00:04.5]}
71... fxg4 {[%clk 0:00:07.1]} 72. Kf1 {[%clk 0:00:04.4]} 72... h3 {[%clk
0:00:07.4]} 73. Kg1 {[%clk 0:00:04]} 73... h2+ {[%clk 0:00:07.2]} 74. Kh1 {[%clk
0:00:04.4]} 74... Kc7 {[%clk 0:00:06.7]} 75. Be6 {[%clk 0:00:02.9]} 75... Kxc6
{[%clk 0:00:06.5]} 76. Bxg4 {[%clk 0:00:03.7]} 76... Kc5 {[%clk 0:00:06.8]} 77.
Bh3 {[%clk 0:00:04.2]} 77... Kd4 {[%clk 0:00:07.7]} 78. Bg4 {[%clk 0:00:04.6]}
78... Ke3 {[%clk 0:00:08]} 79. Bf3 {[%clk 0:00:05.5]} 79... Kf2 {[%clk
0:00:08.2]} 80. Bh5 {[%clk 0:00:06]} 80... Kf1 {[%clk 0:00:08.6]} 81. Bf3 {[%clk
0:00:06.9]} 81... Kf2 {[%clk 0:00:09.2]} 82. Bh5 {[%clk 0:00:06.8]} 82... Kf1
{[%clk 0:00:10.1]} 83. Bf3 {[%clk 0:00:07.3]} 83... Kf2 {[%clk 0:00:10.7]}
1/2-1/2